[Event "EUSA-ch Open 2019"]
[Site "Budapest"]
[Date "2019.07.26"]
[Round "6.5"]
[White "Smolka, Marcin"]
[Black "Korpa, Bence"]
[Result "0-1"]
[ECO "B20"]
[WhiteElo "2178"]
[BlackElo "2523"]
[Annotator "ChessBase"]
[PlyCount "98"]
[EventDate "2019.07.23"]
[EventType "team-tourn"]
[EventCountry "HUN"]
[SourceTitle "playchess.com"]
[Source "ChessBase"]
[SourceQuality "1"]
[TimeControl "1500+10"]

1. e4 {[%emt 0:00:00]} c5 {[%emt 0:00:00]} 2. c4 {[%emt 0:00:00]} e6 {[%emt 0:00:09]} 3. Nc3 {[%emt 0:00:01]} b6 {[%emt 0:00:10]} 4. Nf3 {[%emt 0:00:06]} Bb7 {[%emt 0:00:04]} 5. d4 {[%emt 0:00:04]} cxd4 {[%emt 0:00:03]} 6. Nxd4 {[%emt 0:00:03]} d6 {[%emt 0:00:03]} 7. Be2 {[%emt 0:00:10]} a6 {[%emt 0:00:14]} 8. Be3 {[%emt 0:00:02]} Nf6 {[%emt 0:00:09]} 9. f3 {[%emt 0:00:03]} Nbd7 {[%emt 0:00:04]} 10. Qd2 {[%emt 0:00:01]} Be7 {[%emt 0:00:02]} 11. O-O {[%emt 0:00:05]} O-O {[%emt 0:00:03]} 12. Rfd1 {[%emt 0:00:02]} Qc7 {[%emt 0:00:02]} 13. Rac1 {[%emt 0:00:01]} Rfc8 {[%emt 0:00:05]} 14. Bf1 {[%emt 0:00:11]} Qd8 {[%emt 0:00:03]} 15. Qf2 {[%emt 0:01:01]} Rab8 {[%emt 0:00:16]} 16. Nc2 {[%emt 0:00:43]} Qf8 {[%emt 0:03:31]} 17. Qd2 {[%emt 0:03:48]} h6 {[%emt 0:01:48]} 18. b3 {[%emt 0:01:46]} g5 {[%emt 0:00:34]} 19. h4 {[%emt 0:02:06]} Nh7 {[%emt 0:00:06]} 20. Nd4 {[%emt 0:00:01]} Qg7 {[%emt 0:00:20]} 21. Bd3 {[%emt 0:00:58]} Ne5 {[%emt 0:00:35]} 22. Bb1 {[%emt 0:00:02]} gxh4 {[%emt 0:01:15]} 23. Bxh6 {[%emt 0:00:39]} Qg6 {[%emt 0:00:02]} 24. Bf4 {[%emt 0:03:06]} Nf6 {[%emt 0:03:28]} 25. Kf2 {[%emt 0:01:30]} Nh5 {[%emt 0:00:27]} 26. Nd5 {[%emt 0:05:17]} Bd8 {[%emt 0:02:11]} 27. Rh1 {[%emt 0:01:10]} Nxf4 {[%emt 0:02:53]} 28. Nxf4 {[%emt 0:00:17]} Qg3+ {[%emt 0:00:26]} 29. Kf1 {[%emt 0:00:31]} b5 {[%emt 0:04:03]} 30. Rh3 {[%emt 0:01:08]} Qg5 {[%emt 0:00:06]} 31. g3 {[%emt 0:00:10]} Ng6 {[%emt 0:01:00]} 32. Qe1 {[%emt 0:02:20]} Nxf4 {[%emt 0:01:52]} 33. gxf4 {[%emt 0:00:02]} Qxf4 {[%emt 0:00:07]} 34. Rc2 {[%emt 0:00:36]} bxc4 {[%emt 0:00:08]} 35. bxc4 {[%emt 0:02:05]} Kf8 {[%emt 0:00:18]} 36. Ne2 {[%emt 0:00:21]} Qf6 {[%emt 0:00:27]} 37. Rc1 {[%emt 0:00:29]} Rc5 {[%emt 0:00:58]} 38. Qf2 {[%emt 0:00:06]} Ba8 {[%emt 0:00:20]} 39. f4 {[%emt 0:00:13]} Qb2 {[%emt 0:00:43]} 40. Qe3 {[%emt 0:00:11]} Bb6 {[%emt 0:00:42]} 41. Qd3 {[%emt 0:00:01]} Ke7 {[%emt 0:00:03]} 42. Rd1 {[%emt 0:00:10]} Rd8 {[%emt 0:00:29]} 43. e5 {[%emt 0:00:13]} d5 {[%emt 0:00:19]} 44. f5 {[%emt 0:00:16]} dxc4 {[%emt 0:00:50]} 45. f6+ {[%emt 0:00:01]} Ke8 {[%emt 0:00:01]} 46. Qc2 {[%emt 0:00:19]} Qxc2 {[%emt 0:00:13]} 47. Bxc2 {[%emt 0:00:00]} Rxd1+ {[%emt 0:00:04]} 48. Bxd1 {[%emt 0:00:01]} Rxe5 {[%emt 0:00:09]} 49. Rxh4 {[%emt 0:00:03]} Rf5+ {[%emt 0:00:01]} 0-1

[Event "EUSA-ch Open 2019"]
[Site "Budapest"]
[Date "2019.07.26"]
[Round "6.6"]
[White "Kaczur, Florian"]
[Black "Popiol, Michal"]
[Result "1-0"]
[ECO "A00"]
[WhiteElo "2463"]
[BlackElo "2187"]
[Annotator "ChessBase"]
[PlyCount "111"]
[EventDate "2019.07.23"]
[EventType "team-tourn"]
[EventCountry "HUN"]
[SourceTitle "playchess.com"]
[Source "ChessBase"]
[SourceQuality "1"]
[TimeControl "1500+10"]

1. g3 {[%emt 0:00:00]} g6 {[%emt 0:00:00]} 2. Nf3 {[%emt 0:00:01]} Bg7 {[%emt 0:00:02]} 3. Bg2 {[%emt 0:00:08]} Nf6 {[%emt 0:00:03]} 4. O-O {[%emt 0:00:25]} O-O {[%emt 0:00:03]} 5. d4 {[%emt 0:00:05]} d5 {[%emt 0:00:01]} 6. c4 {[%emt 0:00:10]} dxc4 {[%emt 0:00:03]} 7. Na3 {[%emt 0:00:12]} c3 {[%emt 0:00:02]} 8. bxc3 {[%emt 0:00:02]} c5 {[%emt 0:00:02]} 9. Nc4 {[%emt 0:00:17]} Nc6 {[%emt 0:00:46]} 10. a4 {[%emt 0:01:29]} Nd5 {[%emt 0:02:23]} 11. Bb2 {[%emt 0:01:16]} Nb6 {[%emt 0:00:46]} 12. Ne3 {[%emt 0:01:51]} Na5 {[%emt 0:00:36]} 13. dxc5 {[%emt 0:02:04]} Nbc4 {[%emt 0:00:02]} 14. Nxc4 {[%emt 0:00:18]} Nxc4 {[%emt 0:00:02]} 15. Qb3 {[%emt 0:02:29]} Nxb2 {[%emt 0:00:25]} 16. Qxb2 {[%emt 0:00:04]} Qa5 {[%emt 0:01:01]} 17. Qb5 {[%emt 0:00:27]} Qxc3 {[%emt 0:01:49]} 18. Rac1 {[%emt 0:00:13]} Qf6 {[%emt 0:00:27]} 19. Rfd1 {[%emt 0:00:54]} Bh6 {[%emt 0:02:32]} 20. e3 {[%emt 0:01:27]} e5 {[%emt 0:06:42]} 21. c6 {[%emt 0:01:34]} bxc6 {[%emt 0:00:34]} 22. Qxe5 {[%emt 0:01:43]} Bg7 {[%emt 0:00:55]} 23. Qxf6 {[%emt 0:00:07]} Bxf6 {[%emt 0:00:01]} 24. Rxc6 {[%emt 0:00:09]} Kg7 {[%emt 0:00:02]} 25. Rc7 {[%emt 0:02:29]} a5 {[%emt 0:01:11]} 26. Rdc1 {[%emt 0:01:13]} Rb8 {[%emt 0:00:52]} 27. Nd4 {[%emt 0:00:51]} Be5 {[%emt 0:03:19]} 28. R7c5 {[%emt 0:00:17]} Bxd4 {[%emt 0:00:03]} 29. exd4 {[%emt 0:00:02]} Bd7 {[%emt 0:00:06]} 30. Rxa5 {[%emt 0:00:19]} Rb4 {[%emt 0:00:02]} 31. Ra1 {[%emt 0:00:35]} Rxd4 {[%emt 0:00:08]} 32. Ra7 {[%emt 0:00:19]} Rc8 {[%emt 0:00:42]} 33. a5 {[%emt 0:00:12]} Bc6 {[%emt 0:03:20]} 34. Bxc6 {[%emt 0:02:30]} Rxc6 {[%emt 0:00:02]} 35. Ra2 {[%emt 0:00:08]} Rcc4 {[%emt 0:01:02]} 36. Rb7 {[%emt 0:00:56]} Ra4 {[%emt 0:00:09]} 37. Rbb2 {[%emt 0:00:02]} Rd1+ {[%emt 0:00:06]} 38. Kg2 {[%emt 0:00:02]} Ra1 {[%emt 0:00:01]} 39. Rxa1 {[%emt 0:00:17]} Rxa1 {[%emt 0:00:02]} 40. Rb5 {[%emt 0:00:02]} Ra3 {[%emt 0:00:17]} 41. g4 {[%emt 0:00:17]} h6 {[%emt 0:00:31]} 42. h4 {[%emt 0:00:05]} Ra4 {[%emt 0:00:20]} 43. Kg3 Ra3+ {[%emt 0:00:02]} 44. f3 {[%emt 0:00:04]} Ra4 {[%emt 0:00:01]} 45. h5 {[%emt 0:00:13]} gxh5 {[%emt 0:00:19]} 46. Rxh5 {[%emt 0:00:12]} Ra3 {[%emt 0:00:18]} 47. Rf5 {[%emt 0:00:05]} Ra4 {[%emt 0:00:03]} 48. Kf2 {[%emt 0:00:08]} Ra3 {[%emt 0:00:06]} 49. Ke2 {[%emt 0:00:10]} Ra4 {[%emt 0:00:36]} 50. Kd3 {[%emt 0:00:05]} Ra3+ {[%emt 0:00:09]} 51. Kc4 {[%emt 0:00:05]} Ra1 {[%emt 0:00:01]} 52. Kb5 {[%emt 0:00:04]} Rb1+ {[%emt 0:00:15]} 53. Kc6 {[%emt 0:00:02]} Ra1 {[%emt 0:00:02]} 54. Kb6 {[%emt 0:00:10]} Kf8 {[%emt 0:00:08]} 55. a6 {[%emt 0:00:03]} Ke7 {[%emt 0:00:03]} 56. a7 {[%emt 0:00:48]} 1-0

[Event "EUSA-ch Open 2019"]
[Site "Budapest"]
[Date "2019.07.26"]
[Round "7.4"]
[White "Golubka, Petro"]
[Black "Kaczur, Florian"]
[Result "1-0"]
[ECO "C45"]
[WhiteElo "2483"]
[BlackElo "2463"]
[Annotator "ChessBase"]
[PlyCount "123"]
[EventDate "2019.07.23"]
[EventType "team-tourn"]
[EventCountry "HUN"]
[SourceTitle "playchess.com"]
[Source "ChessBase"]
[SourceQuality "1"]
[TimeControl "1500+10"]

1. e4 {[%emt 0:00:00]} e5 {[%emt 0:00:00]} 2. Nf3 {[%emt 0:00:00]} Nc6 {[%emt 0:00:00]} 3. d4 {[%emt 0:00:04]} exd4 {[%emt 0:00:00]} 4. Nxd4 {[%emt 0:00:01]} Bc5 {[%emt 0:00:04]} 5. Nb3 {[%emt 0:00:02]} Bb6 {[%emt 0:00:03]} 6. Nc3 {[%emt 0:00:02]} Nf6 {[%emt 0:00:34]} 7. Qf3 {[%emt 0:01:13]} d6 {[%emt 0:01:33]} 8. Be3 {[%emt 0:00:37]} Qe7 {[%emt 0:01:23]} 9. Bg5 {[%emt 0:00:38]} Ne5 {[%emt 0:02:43]} 10. Qf4 {[%emt 0:00:03]} Ng6 {[%emt 0:00:32]} 11. Qf3 {[%emt 0:00:26]} Ne5 {[%emt 0:00:15]} 12. Qe2 {[%emt 0:00:17]} c6 {[%emt 0:01:58]} 13. f3 {[%emt 0:00:54]} h6 {[%emt 0:00:14]} 14. Be3 {[%emt 0:00:25]} O-O {[%emt 0:00:17]} 15. O-O-O {[%emt 0:00:08]} Re8 {[%emt 0:00:57]} 16. Bxb6 {[%emt 0:00:32]} axb6 {[%emt 0:00:02]} 17. Qd2 {[%emt 0:00:01]} b5 {[%emt 0:00:31]} 18. Qxd6 {[%emt 0:00:39]} Qxd6 {[%emt 0:00:11]} 19. Rxd6 {[%emt 0:00:01]} b4 {[%emt 0:00:08]} 20. Nb1 {[%emt 0:00:15]} Rxa2 {[%emt 0:00:48]} 21. Rd4 {[%emt 0:00:06]} Nfd7 {[%emt 0:01:27]} 22. Rxb4 {[%emt 0:00:12]} c5 {[%emt 0:00:26]} 23. Nc3 {[%emt 0:00:18]} Ra8 {[%emt 0:00:38]} 24. Ra4 {[%emt 0:00:07]} Rxa4 {[%emt 0:00:28]} 25. Nxa4 {[%emt 0:00:01]} c4 {[%emt 0:00:42]} 26. Nd4 {[%emt 0:00:07]} b6 {[%emt 0:00:39]} 27. Be2 {[%emt 0:00:23]} Ba6 {[%emt 0:00:15]} 28. b4 {[%emt 0:00:29]} Rc8 {[%emt 0:01:13]} 29. Kb1 {[%emt 0:01:01]} Rb8 {[%emt 0:03:17]} 30. Nc3 {[%emt 0:00:31]} Bb7 {[%emt 0:01:01]} 31. Rd1 {[%emt 0:00:15]} Nf6 {[%emt 0:00:40]} 32. Ndb5 {[%emt 0:00:17]} Bc6 {[%emt 0:00:30]} 33. Kb2 {[%emt 0:00:15]} g5 {[%emt 0:00:11]} 34. Nd6 {[%emt 0:01:18]} b5 {[%emt 0:00:40]} 35. g3 {[%emt 0:00:37]} Bd7 {[%emt 0:01:08]} 36. f4 {[%emt 0:00:15]} Nc6 {[%emt 0:00:18]} 37. e5 Ne8 {[%emt 0:01:08]} 38. Nd5 {[%emt 0:01:29]} Kf8 {[%emt 0:00:24]} 39. Nxe8 {[%emt 0:00:16]} Bxe8 {[%emt 0:00:02]} 40. Bf3 {[%emt 0:00:41]} Rd8 {[%emt 0:00:37]} 41. c3 {[%emt 0:00:12]} gxf4 {[%emt 0:00:24]} 42. gxf4 {[%emt 0:00:01]} Ne7 {[%emt 0:00:31]} 43. Nxe7 {[%emt 0:00:25]} Rxd1 {[%emt 0:00:08]} 44. Bxd1 {[%emt 0:00:04]} Kxe7 {[%emt 0:00:02]} 45. Kc1 {[%emt 0:00:19]} f6 {[%emt 0:00:06]} 46. exf6+ {[%emt 0:00:03]} Kxf6 {[%emt 0:00:02]} 47. Kd2 {[%emt 0:00:28]} Kf5 {[%emt 0:00:32]} 48. Ke3 {[%emt 0:00:02]} h5 {[%emt 0:00:12]} 49. Bf3 {[%emt 0:00:58]} h4 {[%emt 0:00:55]} 50. Be4+ {[%emt 0:02:55]} Kg4 {[%emt 0:00:09]} 51. f5 {[%emt 0:01:01]} Kg5 {[%emt 0:00:37]} 52. Kd4 {[%emt 0:00:06]} Kf6 {[%emt 0:00:59]} 53. Kc5 {[%emt 0:00:47]} Bd7 {[%emt 0:00:42]} 54. Bc6 {[%emt 0:00:19]} Bc8 {[%emt 0:00:07]} 55. Kxb5 {[%emt 0:00:25]} Kxf5 {[%emt 0:00:02]} 56. Kxc4 {[%emt 0:00:03]} Kf4 {[%emt 0:00:04]} 57. Kd4 {[%emt 0:00:24]} Kg4 {[%emt 0:00:15]} 58. b5 {[%emt 0:00:23]} Kh3 {[%emt 0:00:05]} 59. b6 {[%emt 0:00:01]} Kxh2 {[%emt 0:00:04]} 60. b7 {[%emt 0:00:02]} Bxb7 {[%emt 0:00:02]} 61. Bxb7 {[%emt 0:00:01]} h3 {[%emt 0:00:04]} 62. Bc8 {[%emt 0:00:03]} 1-0

[Event "EUSA-ch Open 2019"]
[Site "Budapest"]
[Date "2019.07.26"]
[Round "7.5"]
[White "Kalogeris, Ioannis"]
[Black "Harutyunian, Tigran K."]
[Result "0-1"]
[ECO "D39"]
[WhiteElo "2376"]
[BlackElo "2539"]
[Annotator "ChessBase"]
[PlyCount "72"]
[EventDate "2019.07.23"]
[EventType "team-tourn"]
[EventCountry "HUN"]
[SourceTitle "playchess.com"]
[Source "ChessBase"]
[SourceQuality "1"]
[TimeControl "1500+10"]

1. d4 {[%emt 0:00:00]} Nf6 {[%emt 0:00:00]} 2. Nf3 {[%emt 0:00:00]} d5 {[%emt 0:00:00]} 3. c4 {[%emt 0:00:00]} e6 {[%emt 0:00:00]} 4. Nc3 {[%emt 0:00:02]} Bb4 {[%emt 0:00:07]} 5. Bg5 {[%emt 0:00:23]} dxc4 {[%emt 0:00:03]} 6. e4 {[%emt 0:00:13]} h6 {[%emt 0:00:02]} 7. Bxf6 {[%emt 0:00:29]} Qxf6 {[%emt 0:00:02]} 8. Bxc4 {[%emt 0:00:24]} c5 {[%emt 0:00:01]} 9. e5 {[%emt 0:02:36]} Qe7 {[%emt 0:02:06]} 10. O-O {[%emt 0:00:37]} cxd4 {[%emt 0:02:32]} 11. Qxd4 {[%emt 0:01:25]} Nc6 {[%emt 0:00:26]} 12. Qg4 {[%emt 0:00:34]} O-O {[%emt 0:03:04]} 13. Ne4 {[%emt 0:00:23]} Kh8 {[%emt 0:00:20]} 14. Rad1 {[%emt 0:02:48]} Bd7 {[%emt 0:00:14]} 15. Bd3 {[%emt 0:00:19]} Rad8 {[%emt 0:00:55]} 16. Qh5 {[%emt 0:04:02]} Be8 {[%emt 0:00:50]} 17. Qh3 {[%emt 0:02:52]} Ba5 {[%emt 0:01:56]} 18. Bb1 {[%emt 0:03:18]} Bc7 {[%emt 0:00:52]} 19. Qg3 {[%emt 0:01:27]} Rd5 {[%emt 0:01:08]} 20. Rxd5 {[%emt 0:01:08]} exd5 {[%emt 0:00:01]} 21. Nc3 {[%emt 0:00:14]} Qe6 {[%emt 0:02:29]} 22. Rd1 {[%emt 0:02:37]} d4 {[%emt 0:02:49]} 23. Nb5 {[%emt 0:00:56]} Bb8 {[%emt 0:01:53]} 24. Nbxd4 {[%emt 0:00:58]} Nxd4 {[%emt 0:00:01]} 25. Rxd4 {[%emt 0:00:19]} Bc6 {[%emt 0:00:02]} 26. Be4 {[%emt 0:01:00]} Qxa2 {[%emt 0:00:04]} 27. h4 {[%emt 0:00:08]} Qxb2 {[%emt 0:00:42]} 28. Bxc6 {[%emt 0:00:07]} Qc1+ {[%emt 0:00:40]} 29. Kh2 {[%emt 0:00:01]} Qxc6 {[%emt 0:00:02]} 30. Rg4 {[%emt 0:00:20]} Rg8 {[%emt 0:00:12]} 31. Qf4 {[%emt 0:00:15]} Qe6 {[%emt 0:00:07]} 32. g3 {[%emt 0:00:09]} f5 {[%emt 0:01:04]} 33. Rg5 {[%emt 0:00:15]} Rf8 {[%emt 0:02:22]} 34. Rh5 {[%emt 0:00:07]} Qg6 {[%emt 0:00:16]} 35. Qb4 {[%emt 0:00:13]} Re8 {[%emt 0:00:20]} 36. g4 {[%emt 0:00:08]} fxg4 {[%emt 0:00:16]} 0-1

[Event "EUSA-ch Open 2019"]
[Site "Budapest"]
[Date "2019.07.26"]
[Round "7.6"]
[White "Petrosyan, Tigran S."]
[Black "Kalogridakis, Georgios"]
[Result "1-0"]
[ECO "A33"]
[WhiteElo "2448"]
[BlackElo "2134"]
[Annotator "NA"]
[PlyCount "103"]
[EventDate "2019.07.23"]
[EventType "team-tourn"]
[EventCountry "HUN"]
[SourceTitle "playchess.com"]
[Source "ChessBase"]
[SourceQuality "1"]
[TimeControl "1500+10"]

1. Nf3 {[%emt 0:00:00]} Nf6 {[%emt 0:00:00]} 2. c4 {[%emt 0:00:00]} c5 {[%emt 0:00:00]} 3. Nc3 {[%emt 0:00:00]} Nc6 {[%emt 0:00:00]} 4. d4 {[%emt 0:00:00]} cxd4 {[%emt 0:00:00]} 5. Nxd4 {[%emt 0:00:00]} e6 {[%emt 0:00:01]} 6. Bf4 {[%emt 0:00:09]} a6 {[%emt 0:00:49]} 7. Nxc6 {[%emt 0:00:03]} bxc6 {[%emt 0:00:01]} 8. Bd6 {[%emt 0:00:12]} Bxd6 {[%emt 0:00:37]} 9. Qxd6 {[%emt 0:00:03]} Qe7 {[%emt 0:00:01]} 10. Rd1 {[%emt 0:01:39]} Qxd6 {[%emt 0:00:07]} 11. Rxd6 {[%emt 0:00:02]} Ke7 {[%emt 0:00:02]} 12. c5 {[%emt 0:00:39]} a5 {[%emt 0:00:43]} 13. b3 {[%emt 0:03:51]} Ba6 {[%emt 0:04:00]} 14. e4 {[%emt 0:04:28]} a4 {[%emt 0:04:29]} 15. b4 {[%emt 0:01:13]} a3 {[%emt 0:00:48]} 16. Bxa6 {[%emt 0:01:02]} Rxa6 {[%emt 0:00:01]} 17. Ke2 {[%emt 0:00:09]} Rb8 {[%emt 0:00:03]} 18. Rb1 {[%emt 0:00:06]} Ra7 {[%emt 0:00:12]} 19. Rb3 {[%emt 0:04:59]} Ne8 {[%emt 0:03:57]} 20. Rd1 {[%emt 0:00:04]} e5 {[%emt 0:01:57]} 21. Rdb1 {[%emt 0:02:31]} Nc7 {[%emt 0:00:52]} 22. Kd3 {[%emt 0:00:47]} Ne6 {[%emt 0:01:30]} 23. Ne2 {[%emt 0:01:25]} Ra4 {[%emt 0:01:06]} 24. Kc3 {[%emt 0:01:19]} g6 {[%emt 0:00:25]} 25. g3 {[%emt 0:00:43]} f5 {[%emt 0:00:20]} 26. exf5 {[%emt 0:00:06]} gxf5 {[%emt 0:00:01]} 27. f4 {[%emt 0:00:05]} exf4 {[%emt 0:01:41]} 28. Nxf4 {[%emt 0:00:32]} Raa8 {[%emt 0:01:15]} 29. Nxe6 {[%emt 0:00:36]} dxe6 {[%emt 0:00:02]} 30. Rd1 {[%emt 0:00:01]} Rd8 {[%emt 0:01:55]} 31. Rxd8 {[%emt 0:00:03]} Kxd8 {[%emt 0:00:01]} 32. Kc4 {[%emt 0:01:45]} Kc7 {[%emt 0:01:19]} 33. Re3 {[%emt 0:00:06]} Re8 {[%emt 0:00:46]} 34. Rxa3 {[%emt 0:00:03]} Kb7 {[%emt 0:00:09]} 35. Rd3 {[%emt 0:00:08]} Re7 {[%emt 0:00:08]} 36. a4 {[%emt 0:00:02]} e5 {[%emt 0:00:00]} 37. Rf3 {[%emt 0:00:44]} Rf7 {[%emt 0:00:48]} 38. b5 {[%emt 0:00:20]} h5 {[%emt 0:00:01]} 39. Rf1 {[%emt 0:00:19]} h4 {[%emt 0:00:33]} 40. g4 {[%emt 0:00:19]} f4 {[%emt 0:00:44]} 41. Kd3 {[%emt 0:00:03]} Rd7+ {[%emt 0:00:01]} 42. Ke4 {[%emt 0:00:02]} Rd4+ {[%emt 0:00:18]} 43. Kxe5 {[%emt 0:00:04]} Rxa4 {[%emt 0:00:01]} 44. Rxf4 {[%emt 0:00:14]} Ra2 {[%emt 0:00:24]} 45. Rf7+ {[%emt 0:00:03]} Kb8 {[%emt 0:00:02]} 46. Kd6 {[%emt 0:00:42]} cxb5 {[%emt 0:00:05]} 47. Kc6 {[%emt 0:00:04]} Rxh2 {[%emt 0:00:24]} 48. Kb6 {[%emt 0:00:04]} Kc8 {[%emt 0:00:08]} 49. c6 {[%emt 0:00:03]} Rd2 {[%emt 0:00:02]} 50. Rf8+ {[%emt 0:00:01]} Rd8 {[%emt 0:00:10]} 51. Rxd8+ {[%emt 0:00:02]} Kxd8 {[%emt 0:00:01]} 52. Kb7 {[%emt 0:00:00]} 1-0

[Event "EUSA-ch Open 2019"]
[Site "Budapest"]
[Date "2019.07.26"]
[Round "8.3"]
[White "Shevchenko, Kirill"]
[Black "Daskalov, Dimitar"]
[Result "1-0"]
[ECO "A52"]
[WhiteElo "2536"]
[BlackElo "2305"]
[Annotator "ChessBase"]
[PlyCount "117"]
[EventDate "2019.07.23"]
[EventType "team-tourn"]
[EventCountry "HUN"]
[SourceTitle "playchess.com"]
[Source "ChessBase"]
[SourceQuality "1"]
[TimeControl "1500+10"]

1. d4 {[%emt 0:00:00]} Nf6 {[%emt 0:00:00]} 2. c4 {[%emt 0:00:00]} e5 {[%emt 0:00:00]} 3. dxe5 {[%emt 0:00:07]} Ng4 {[%emt 0:00:00]} 4. Bf4 {[%emt 0:01:20]} Bb4+ {[%emt 0:00:00]} 5. Nd2 {[%emt 0:01:47]} Nc6 {[%emt 0:00:01]} 6. Ngf3 {[%emt 0:00:15]} Qe7 {[%emt 0:00:02]} 7. e3 {[%emt 0:01:58]} Ngxe5 {[%emt 0:00:03]} 8. Nxe5 {[%emt 0:00:08]} Nxe5 {[%emt 0:00:02]} 9. a3 {[%emt 0:00:01]} Bxd2+ {[%emt 0:00:02]} 10. Qxd2 {[%emt 0:00:01]} d6 {[%emt 0:00:02]} 11. Be2 {[%emt 0:00:17]} O-O {[%emt 0:00:56]} 12. O-O {[%emt 0:00:15]} a5 {[%emt 0:00:34]} 13. Rac1 {[%emt 0:02:58]} b6 {[%emt 0:00:49]} 14. b4 {[%emt 0:00:16]} axb4 {[%emt 0:00:01]} 15. axb4 {[%emt 0:00:02]} Bb7 {[%emt 0:00:23]} 16. c5 {[%emt 0:00:53]} dxc5 {[%emt 0:00:20]} 17. bxc5 {[%emt 0:00:11]} Ng6 {[%emt 0:00:25]} 18. Bg3 {[%emt 0:00:33]} bxc5 {[%emt 0:01:28]} 19. Qc2 {[%emt 0:05:23]} Ra5 {[%emt 0:01:45]} 20. Rfd1 {[%emt 0:00:48]} Rfa8 {[%emt 0:00:37]} 21. h3 {[%emt 0:01:57]} Nf8 {[%emt 0:00:32]} 22. Bc4 {[%emt 0:00:58]} Be4 {[%emt 0:02:25]} 23. Qc3 {[%emt 0:00:43]} Bc6 {[%emt 0:01:16]} 24. Qe5 {[%emt 0:02:14]} Qxe5 {[%emt 0:01:29]} 25. Bxe5 {[%emt 0:00:01]} Ne6 {[%emt 0:00:04]} 26. Bxe6 {[%emt 0:01:50]} fxe6 {[%emt 0:00:02]} 27. Bxc7 {[%emt 0:00:04]} Rb5 {[%emt 0:01:03]} 28. Rd6 {[%emt 0:02:00]} Bd5 {[%emt 0:00:04]} 29. f3 {[%emt 0:00:06]} Rc8 {[%emt 0:01:25]} 30. Rd7 {[%emt 0:00:32]} Bc6 {[%emt 0:00:48]} 31. Re7 {[%emt 0:00:42]} Rb7 {[%emt 0:00:11]} 32. Bd6 {[%emt 0:00:02]} Rxe7 {[%emt 0:00:08]} 33. Bxe7 {[%emt 0:00:02]} Kf7 {[%emt 0:00:14]} 34. Bxc5 {[%emt 0:00:22]} Be8 {[%emt 0:00:02]} 35. Kf2 {[%emt 0:00:27]} e5 {[%emt 0:00:11]} 36. e4 {[%emt 0:00:03]} Ke6 {[%emt 0:00:04]} 37. h4 {[%emt 0:00:17]} Bb5 {[%emt 0:00:52]} 38. g3 {[%emt 0:00:31]} g6 {[%emt 0:00:23]} 39. Ke3 {[%emt 0:00:05]} Rc7 {[%emt 0:00:07]} 40. Rc3 {[%emt 0:00:04]} Rc8 {[%emt 0:00:11]} 41. Kd2 {[%emt 0:00:03]} Bf1 {[%emt 0:00:39]} 42. Ke1 {[%emt 0:00:18]} Bb5 {[%emt 0:00:09]} 43. Kd2 {[%emt 0:00:01]} Bf1 {[%emt 0:00:02]} 44. Rc2 {[%emt 0:00:33]} Bb5 {[%emt 0:00:27]} 45. Rc1 {[%emt 0:00:08]} Bd7 {[%emt 0:00:15]} 46. Rc3 {[%emt 0:00:23]} Bb5 {[%emt 0:00:10]} 47. Kc2 {[%emt 0:00:12]} Be2 {[%emt 0:00:31]} 48. f4 {[%emt 0:00:02]} Ba6 {[%emt 0:01:11]} 49. Kd2 {[%emt 0:00:35]} Bb7 {[%emt 0:00:47]} 50. Ke3 {[%emt 0:00:06]} Ba8 {[%emt 0:00:39]} 51. fxe5 {[%emt 0:00:18]} h5 {[%emt 0:01:37]} 52. Kf4 {[%emt 0:00:17]} Rc7 {[%emt 0:00:15]} 53. Ra3 {[%emt 0:00:15]} Rf7+ {[%emt 0:00:24]} 54. Ke3 {[%emt 0:00:08]} Bb7 {[%emt 0:00:20]} 55. Rb3 {[%emt 0:00:23]} Kxe5 {[%emt 0:00:25]} 56. Rb6 {[%emt 0:00:06]} Bxe4 {[%emt 0:01:17]} 57. Bd4+ {[%emt 0:00:01]} Kf5 {[%emt 0:00:02]} 58. Rb5+ {[%emt 0:00:02]} Kg4 {[%emt 0:00:01]} 59. Rg5+ {[%emt 0:00:01]} 1-0

[Event "EUSA-ch Open 2019"]
[Site "Budapest"]
[Date "2019.07.26"]
[Round "8.4"]
[White "Otegenov, Sultan"]
[Black "Golubka, Petro"]
[Result "0-1"]
[ECO "B11"]
[WhiteElo "2136"]
[BlackElo "2483"]
[Annotator "ChessBase"]
[PlyCount "78"]
[EventDate "2019.07.23"]
[EventType "team-tourn"]
[EventCountry "HUN"]
[SourceTitle "playchess.com"]
[Source "ChessBase"]
[SourceQuality "1"]
[TimeControl "1500+10"]

1. e4 c6 {[%emt 0:00:02]} 2. Nf3 {[%emt 0:00:00]} d5 {[%emt 0:00:01]} 3. Nc3 {[%emt 0:00:00]} Bg4 {[%emt 0:00:23]} 4. h3 {[%emt 0:00:00]} Bxf3 {[%emt 0:00:01]} 5. Qxf3 {[%emt 0:00:00]} e6 {[%emt 0:00:01]} 6. a3 {[%emt 0:00:07]} Nd7 {[%emt 0:00:10]} 7. d3 {[%emt 0:00:04]} Bd6 {[%emt 0:00:16]} 8. g3 {[%emt 0:00:07]} Ngf6 {[%emt 0:00:47]} 9. Bg2 {[%emt 0:00:03]} Qc7 {[%emt 0:00:07]} 10. O-O {[%emt 0:00:16]} a6 {[%emt 0:00:31]} 11. Re1 {[%emt 0:00:33]} dxe4 {[%emt 0:01:01]} 12. Nxe4 {[%emt 0:03:48]} Nxe4 {[%emt 0:00:02]} 13. dxe4 {[%emt 0:00:01]} O-O {[%emt 0:00:11]} 14. Rd1 {[%emt 0:01:35]} Ne5 {[%emt 0:00:45]} 15. Qe2 {[%emt 0:00:17]} Rfd8 {[%emt 0:00:13]} 16. Be3 {[%emt 0:01:03]} Qe7 {[%emt 0:00:50]} 17. Bb6 {[%emt 0:04:17]} Bc7 {[%emt 0:00:06]} 18. Bd4 {[%emt 0:00:29]} Rd7 {[%emt 0:00:51]} 19. Bc3 {[%emt 0:00:32]} Rad8 {[%emt 0:00:47]} 20. Kh2 {[%emt 0:01:07]} Ng6 {[%emt 0:00:58]} 21. f4 {[%emt 0:03:56]} Nf8 {[%emt 0:00:31]} 22. Qg4 {[%emt 0:02:16]} e5 {[%emt 0:01:24]} 23. Bb4 {[%emt 0:01:40]} c5 {[%emt 0:00:33]} 24. Bc3 {[%emt 0:00:01]} Ne6 {[%emt 0:00:18]} 25. Rxd7 {[%emt 0:04:32]} Qxd7 {[%emt 0:00:24]} 26. fxe5 {[%emt 0:01:28]} Qe7 27. Rd1 Rxd1 {[%emt 0:04:06]} 28. Qxd1 {[%emt 0:00:11]} Nd4 {[%emt 0:00:00]} 29. Bxd4 {[%emt 0:00:05]} cxd4 {[%emt 0:00:03]} 30. Qxd4 Bxe5 {[%emt 0:00:07]} 31. Qc4 {[%emt 0:00:18]} h5 {[%emt 0:00:53]} 32. Bf1 {[%emt 0:00:43]} h4 {[%emt 0:00:42]} 33. Kg2 {[%emt 0:00:01]} hxg3 {[%emt 0:00:02]} 34. Qc8+ {[%emt 0:00:07]} Kh7 {[%emt 0:00:06]} 35. Bc4 {[%emt 0:00:07]} g6 {[%emt 0:00:08]} 36. c3 {[%emt 0:00:49]} Qf6 {[%emt 0:01:30]} 37. Qc5 {[%emt 0:00:02]} Qf4 {[%emt 0:00:24]} 38. Bd5 {[%emt 0:00:32]} Qd2+ {[%emt 0:00:15]} 39. Kf3 {[%emt 0:00:01]} Qd1+ {[%emt 0:00:23]} 0-1